Cogmind - Beta 14 @@@ ROGUE MODE // 2024.09.20 @ 17:35:53 Player: rice Result: Destroyed by DAS Turret with DAS Cannon Performance ------------- Evolutions (0) 0 Regions Visited (3) 600 Robots Destroyed (14) 70 Value Destroyed (365) 365 Prototype IDs (26) 520 Alien Tech Used (0) 0 Bonus (300) 300 TOTAL SCORE: 1855 Bonus ------- Aligned with FarCom 300 Cogmind --------- Core Integrity 0/250 Matter 258/300 Energy 96/100 System Corruption 3% Temperature Cool (2) Movement Treading (160) Location -10/Exiles Parts ------- > --- POWER (1) -------- (None) > --- PROPULSION (2) --- Light Treads Light Treads > --- UTILITY (2) ------ Large Storage Unit Sensor Drone Bay (19/20) > --- WEAPON (2) ------- Improved Assault Rifle > --- INVENTORY (15) --- Ion Engine Light Treads High-capacity Storage Unit Improved Assault Rifle Improved Assault Rifle AWS/Autocannon Rocket Launcher Peak State ------------ > --- POWER ------------ Light Nuclear Core > --- PROPULSION ------- Light Treads Light Treads > --- UTILITY ---------- Small Storage Unit Experimental Sensor Array > --- WEAPON ----------- EM Pulse Gun Improved Assault Rifle > --- INVENTORY -------- Ion Engine Ion Engine Light Treads Aluminum Leg Sensor Drone Bay Improved Assault Rifle Improved Assault Rifle EMP Blaster [Rating: 21] Favorites ----------- Power Light Nuclear Core Engine Light Ion Engine Power Core Light Nuclear Core Propulsion Aluminum Leg Treads Light Treads Leg Aluminum Leg Utility Small Storage Unit Device Sensor Drone Bay Storage Small Storage Unit Weapon Improved Assault Rifle Energy Gun EM Pulse Gun Ballistic Gun Improved Assault Rifle Build | -11 -10 -10 -10 ------- Run | Yrd Mat Min Exi Slots Evolved . | . . . . Power . | . . . . Propulsion . | . . . . Utility . | . . . . Weapon . | . . . . Parts Attached 22 | 5 10 6 1 Power 3 | 1 1 1 . Engine 2 | 1 . 1 . Core 1 | . 1 . . Reactor . | . . . . Propulsion 8 | 2 4 2 . Treads 2 | . . 2 . Leg 6 | 2 4 . . Wheel . | . . . . Hover . | . . . . Flight . | . . . . Utility 5 | . 1 3 1 Device 3 | . . 3 . Storage 2 | . 1 . 1 Processor . | . . . . Hackware . | . . . . Protection . | . . . . Artifact . | . . . . Weapon 6 | 2 4 . . Energy Gun 1 | . 1 . . Energy Cannon . | . . . . Ballistic Gun 5 | 2 3 . . Ballistic Cannon . | . . . . Launcher . | . . . . Special Weapon . | . . . . Impact Weapon . | . . . . Slashing Weapon . | . . . . Piercing Weapon . | . . . . Special Melee Weapon . | . . . . Unidentified Prototypes 3 | . 1 2 . Parts Lost 3 | . 1 . 2 Power 1 | . . . 1 Propulsion . | . . . . Utility . | . . . . Weapon 2 | . 1 . 1 Highest Loss Streak 2 | . 1 . 2 To Critical Strikes . | . . . . Average Slot Usage (%) 94 | . 84 98 100 Engine 5 | . 5 1 14 Core 8 | . 8 12 . Treads 14 | . . 18 28 Leg 13 | . 28 9 . Device 9 | . . 13 14 Storage 13 | . 13 14 14 Energy Gun 10 | . 2 14 14 Ballistic Gun 17 | . 25 14 14 Peak Build Rating 21 | 5 11 21 20 Average Rating 15 | 3 10 18 19 On Entrance 8 | . 5 11 18 Naked Turns . | . . . . Heaviest Build 42 | 8 16 29 42 Greatest Support 40 | 20 20 40 40 Greatest Overweight (x) 1 | . . 1 1 Average Overweight (x) . | . . . . Largest Inventory Capacity 15 | 5 8 8 15 Average Capacity 8 | 5 7 8 9 Most Carried 9 | 5 8 8 9 Average Carried 7 | 2 7 7 8 Final Capacity 15 | 5 8 8 15 Final Carried 9 | 5 7 8 9 Class Distribution -------------------- 100% | Mutant Dominant Class ---------------- Mutant | -10/Materials Mutant | -10/Mines Mutant | -10/Exiles Resources | -11 -10 -10 -10 ----------- Run | Yrd Mat Min Exi Matter Collected 602 | 209 341 49 3 Remotely . | . . . . Salvage Created 413 | . 365 48 . Parts 30 | . 23 7 . Haulers Intercepted . | . . . . Recyclers Shooed . | . . . . Parts Field Recycled . | . . . . Retrieved Matter . | . . . . Parts Self-Destructed . | . . . . Prevented . | . . . . Kills | -11 -10 -10 -10 ------- Run | Yrd Mat Min Exi Combat Hostiles Destroyed 11 | . 8 3 . Guns 9 | . 8 1 . AOE 2 | . . 2 . Classes Destroyed 5 | . 3 2 . Builder 1 | . . 1 . Operator 1 | . 1 . . Watcher 1 | . 1 . . Swarmer 3 | . . 3 . Grunt 8 | . 8 . . Best Kill Streak 4 | . 3 4 . Combat Bots Only 3 | . 3 3 . Max Kills in Single Turn 3 | . 1 3 . Gunslinging . | . . . . Exploded 2 | . . 2 . Melee . | . . . . Uniques/NPCs Destroyed . | . . . . Combat | -11 -10 -10 -10 -------- Run | Yrd Mat Min Exi Hostile Shots Fired 74 | . 49 6 19 Missed 20 | . 11 3 6 Damage Taken 956 | . 483 49 424 Core 256 | . 121 6 129 Absorbed by Shields . | . . . . Core Remaining (%) 100 | 100 . . . Volleys Fired 42 | . 39 3 . Largest 2 | . 2 2 . Hottest 63 | . 63 63 . Shots Fired 85 | . 78 6 1 Gun 85 | . 78 6 1 Cannon . | . . . . Launcher . | . . . . Special . | . . . . Kinetic 74 | . 70 3 1 Thermal . | . . . . Explosive . | . . . . Electromagnetic 11 | . 8 3 . Robot Hit Streak 8 | . 8 4 . Robot Miss Streak 4 | . 4 3 1 Penetration Max . | . . . . Secondary Targets 1 | . 1 . . Max Gunslinging Chain 1 | . 1 . . Shots Hit Robots 56 | . 52 4 . Core Hits 22 | . 18 4 . Critical Kills . | . . . . Critical Parts Destroyed 1 | . 1 . . Critical Strikes 1 | . 1 . . Destroy 1 | . 1 . . Melee Attacks . | . . . . Impact . | . . . . Slashing . | . . . . Piercing . | . . . . Sneak Attacks . | . . . . Combat Hostiles . | . . . . Follow-up Attacks . | . . . . Damage Inflicted 879 | . 727 152 . Guns 761 | . 726 35 . Cannons . | . . . . Explosions 112 | . . 112 . Melee . | . . . . Ramming 6 | . 1 5 . Kinetic 650 | . 637 13 . Thermal 112 | . . 112 . Explosive . | . . . . Electromagnetic 111 | . 89 22 . Impact . | . . . . Slashing . | . . . . Piercing . | . . . . Highest Corruption 3 | . 1 1 3 Average Corruption 1 | . 1 1 1 Corruption Purged . | . . . . Corruption Blocked . | . . . . Effects 15 | . 3 7 5 Message Errors 1 | . . . 1 Matter Fused 4 | . 1 2 1 Heat Flow Errors 1 | . . 1 . Energy Discharges 3 | . . 2 1 Data Loss (minor) 5 | . 2 2 1 Misfires 1 | . . . 1 Overload Shots . | . . . . Overflow Damage . | . . . . Projectiles . | . . . . Explosions . | . . . . Melee . | . . . . Knockbacks . | . . . . Impact . | . . . . Kinetic . | . . . . Secondary . | . . . . Self-Inflicted Damage 28 | . . 28 . Shots 1 | . . 1 . Rammed . | . . . . Targets Rammed 3 | . 1 2 . Kicked 3 | . 1 2 . Crushed . | . . . . Highest Temperature 313 | . 313 265 . Average Temperature 62 | . 54 84 . Received Heat Transfer 300 | . 300 . . Siege Activations . | . . . . Robots Corrupted . | . . . . Combat Hostiles . | . . . . Parts Fried . | . . . . Impact Corruptions . | . . . . Robots Melted . | . . . . Combat Hostiles . | . . . . Parts Melted . | . . . . Heat Transferred 50 | . . 50 . Parts Sabotaged . | . . . . Parts Stolen . | . . . . Parts Stripped . | . . . . Power Chain Reactions 1 | . . 1 . Alert | -11 -10 -10 -10 ------- Run | Yrd Mat Min Exi Peak Influence 195 | . 195 80 . Initial 39 | . . 39 . Average 50 | . 91 27 . Maximum Alert Level . | . . . . Low Security (%) 100 | 100 100 100 . Level 1 . | . . . . Level 2 . | . . . . Level 3 . | . . . . Level 4 . | . . . . Level 5 . | . . . . High Security . | . . . . Max Security . | . . . . Squads Dispatched 2 | . 2 . . Investigation 1 | . 1 . . Extermination . | . . . . Reinforcement 1 | . 1 . . Assault . | . . . . Garrison . | . . . . Intercept . | . . . . Searches Triggered . | . . . . Construction Impeded . | . . . . Haulers Reinforced . | . . . . Active Scanning Responses . | . . . . Cargo Convoy Interrupts . | . . . . Stealth | -11 -10 -10 -10 --------- Run | Yrd Mat Min Exi Distress Signals 1 | . 1 . . Communications Jammed . | . . . . Distress Signals . | . . . . Times Spotted 22 | . 18 3 1 Peak Tracking Total 11 | . 5 3 11 Tactical Retreats 2 | . 2 . . Traps | -11 -10 -10 -10 ------- Run | Yrd Mat Min Exi Traps Triggered 1 | . 1 . . Indirectly . | . . . . Trap Hack Attempts . | . . . . Triggered . | . . . . Disarmed . | . . . . Reprogrammed . | . . . . Reused . | . . . . Traps Extracted . | . . . . Installed . | . . . . Triggered . | . . . . Machines | -11 -10 -10 -10 ---------- Run | Yrd Mat Min Exi Machines Disabled 1 | . . . 1 Max in Single Turn 1 | . . . 1 Machines Repaired . | . . . . Machines Dismantled . | . . . . Machines Sabotaged . | . . . . Overloaded Fab Kills . | . . . . Hacking | -11 -10 -10 -10 --------- Run | Yrd Mat Min Exi Machines Accessed 6 | . 4 1 1 Terminals 3 | . 3 . . Fabricators . | . . . . Repair Stations . | . . . . Recycling Units 1 | . 1 . . Scanalyzers . | . . . . Garrison Access . | . . . . Total Hacks 10 | . 8 1 1 Successful 6 | . 4 1 1 Failed 4 | . 4 . . Catastrophic 1 | . 1 . . Database Lockouts . | . . . . Manual 5 | . 4 . 1 Terminals 6 | . 6 . . Fabricators . | . . . . Repair Stations . | . . . . Recycling Units 2 | . 2 . . Scanalyzers . | . . . . Garrison Access . | . . . . Terminal Hacks 3 | . 1 1 1 Robot Analysis 1 | . 1 . . Open Door 1 | . . 1 . Derelict Proto ID Bank 1 | . . . 1 Fabricator Hacks . | . . . . Repair Station Hacks . | . . . . Recycling Unit Hacks 1 | . 1 . . Retrieve Components 1 | . 1 . . Scanalyzer . | . . . . Garrison Access Hacks . | . . . . Unauthorized Hacks 2 | . 2 . . Terminals 2 | . 2 . . Botnet 1 | . 1 . . Operators 1 | . 1 . . Fabricators . | . . . . Repair Stations . | . . . . Recycling Units . | . . . . Scanalyzers . | . . . . Garrison Access . | . . . . Data Cores Recovered . | . . . . Used . | . . . . Hacking Detections 3 | . 3 . . Full Trace Events 1 | . 1 . . Feedback Events 1 | . 1 . . Corruption 1 | . 1 . . Feedback Blocked . | . . . . Robot Schematics Acquired . | . . . . Robots Built . | . . . . Authchips . | . . . . Time . | . . . . Total Robot Build Rating . | . . . . Part Schematics Acquired . | . . . . Parts Built . | . . . . Authchips . | . . . . Time . | . . . . Total Part Build Rating . | . . . . Parts Repaired . | . . . . Time . | . . . . Parts Recycled . | . . . . Recycled Matter . | . . . . Retrieved Matter . | . . . . Retrieved Components 4 | . 4 . . Parts Scanalyzed . | . . . . Part Schematics Acquired . | . . . . Parts Damaged . | . . . . Bothacking | -11 -10 -10 -10 ------------ Run | Yrd Mat Min Exi Used RIF Installer . | . . . . Robots Hacked . | . . . . Non-combat . | . . . . Combat . | . . . . Robot Hacks Applied . | . . . . Relay Couplers Released . | . . . . Fabnet Peak Effective % . | . . . . Robots Rewired . | . . . . Allies Hacked . | . . . . Hacks Repelled . | . . . . Allies | -11 -10 -10 -10 -------- Run | Yrd Mat Min Exi Total Allies . | . . . . Largest Group . | . . . . Highest-Rated Group . | . . . . Highest-Rated Ally . | . . . . Total Orders 12 | . . 12 . RETURN 12 | . . 12 . Ally Attacks . | . . . . Total Damage . | . . . . Kills . | . . . . Allies Corrupted . | . . . . Allies Melted . | . . . . Intel | -11 -10 -10 -10 ------- Run | Yrd Mat Min Exi Robot Analysis Total 1 | . 1 . . Derelict Logs Recovered 1 | . . 1 . Drone Launches 11 | . . 11 . Drone Recoveries 10 | . . 10 . Exploration | -11 -10 -10 -10 ------------- Run | Yrd Mat Min Exi Turns Passed 2197 | 72 677 1011 437 Spaces Moved 1249 | 51 401 541 256 Core 2 | 2 . . . Treads 646 | . . 390 256 Legs 601 | 49 401 151 . Wheels . | . . . . Hover . | . . . . Flight . | . . . . Fastest Speed 50 | 50 120 120 160 Average Speed 147 | 117 120 160 168 Slowest Speed 240 | 120 120 190 240 Overloaded Moves . | . . . . Propulsion Burnouts . | . . . . Robots Hopped . | . . . . Cave-ins Triggered . | . . . . Exploration Rate (%) 47 | 3 40 85 60 Regions Visited 3 Branch Regions 2 Pre-discovered Areas 1 | . . 1 . Known Exits Taken . | . . . . Unknown Exits Taken 3 | 1 1 1 . Scrap Searched 1 | . . 1 . Spaces Dug . | . . . . Terrain Destroyed 5 | . . 5 . Melee . | . . . . Projectile . | . . . . AOE 5 | . . 5 . Terrain Rammed . | . . . . Walls Destroyed . | . . . . Machines Disabled . | . . . . Actions | -11 -10 -10 -10 --------- Run | Yrd Mat Min Exi Total 1520 | 60 520 675 265 Wait 180 | . 57 121 2 Move 1246 | 50 400 540 256 Hop . | . . . . Pick Up 15 | 5 6 2 2 Fast Attach 6 | 5 . 1 . Attach 2 | . 2 . . Detach . | . . . . Swap 14 | . 8 5 1 Drop 12 | . 7 1 4 Fire 42 | . 39 3 . Melee . | . . . . Ram . | . . . . Kick 3 | . 1 2 . Crush . | . . . . Escape Stasis . | . . . . Rewire . | . . . . Trap . | . . . . Miscellaneous . | . . . . Route ------- -11/Scrapyard -10/Materials (discovered 2 exits: *Mat / *Min) -10/Mines (discovered 2 exits: *Mat / *Exi) -10/Exiles History --------- Turn | Location | Event 5 | -11/Scrapyard | Discovered new exit (range 15) 73 | -11/Scrapyard | Entered Materials 300 | -10/Materials | Build established: Mutant 405 | -10/Materials | Discovered new exit (range 6) 483 | -10/Materials | Discovered new exit (range 9) 750 | -10/Materials | Entered Mines 795 | -10/Mines | Discovered new exit (range 8) 814 | -10/Mines | Found the Drone Emporium 826 | -10/Mines | Found Prototype Device 826 | -10/Mines | Identified Sensor Drone Bay 831 | -10/Mines | Identified exit to Materials 1005 | -10/Mines | A weapon hastily lodged in a ceiling crevice suddenly fell to the ground 1101 | -10/Mines | Learned location of 1 exit from Materials 1198 | -10/Mines | Found a damaged Exp. Sensor Array with a note attached 1204 | -10/Mines | Found Prototype Device 1204 | -10/Mines | Identified Exp. Sensor Array 1528 | -10/Mines | Learned location of Storage (-7) 1603 | -10/Mines | Core integrity fell below 50% 1704 | -10/Mines | Received a Rocket Launcher from a helpful Derelict 1751 | -10/Mines | Deemed a non-threat by the Exiles lab entrance 1753 | -10/Mines | Discovered new exit (range 5) 1761 | -10/Mines | Entered Exiles 1761 | -10/Exiles | Accompanied by 1 ally 1798 | -10/Exiles | Met 8R-AWN 1827 | -10/Exiles | Met EX-HEX 1883 | -10/Exiles | Met EX-BIN 1910 | -10/Exiles | Aligned with FarCom system 1912 | -10/Exiles | Given EX-Vault access code 1954 | -10/Exiles | Opened EX-Vault 1971 | -10/Exiles | Found AWS/Autocannon 2004 | -10/Exiles | Warned to stay clear of 0b10 Research branches 2060 | -10/Exiles | Met EX-DEC 2189 | -10/Exiles | Attacked by the Exiles 2198 | -10/Exiles | Destroyed by DAS Turret with DAS Cannon Last Messages --------------- 02062_ EX-DEC: "Oops, I hope HEX didn't hear that..." 02065_ System corrupted: Component data lost. 02112_ System corrupted: Matter fused (-10). 02126_ Dropped Sml. Storage Unit. 02139_ Acquired Hcp. Storage Unit. 02157_ System corrupted: Energy discharge (-40). 02189_ System corrupted: FCS attempts to trigger Imp. Assault Rifle. 02189_ System corrupted: Imp. Assault Rifle misfires. 02189_ EXILES: Hostile robot within lab perimeter. Defensive protocols time, folks! 02189_ Machine disabled. 02191_ EX-DEC: "Let's see what this bad boy can do..." 02191_ EX-DEC deploys DAS Turret. 02192_ EM Pulse Gun destroyed. 02193_ Acquired 3 matter. 02196_ Lgt. Ion Engine destroyed. Map ----- +----------------------------------------------------+ | ?????????????????????????????????????????## ## | | ?????????????????????????????????????????#" | | ?????????????????????????????????????????#" | | ?????????????????????????????????????????#" | | ?????????????????????????????????????????#" | | ?????????????????????????????????????????#" | | ?????????????????????????????????????????#" | | ?????????????????????????????????????????## | | ??????????????????????????????????????????# | | ??????????????????????????????????????????#" | | ????????????????????????????" ????????????#" | | ??????????????????????????? ???????????#" " | | ????????????????????????????" "?????????##" ## | | ????????????????#???????????# #????????##"" #? | | ?????????????? #####????### ###?######"" #? | | ?????????????? """#####X# #"###""""""" ## | | ????????????? """""" " "" # | | ?????????????? "" """ " | | ??????????????? " " c | | ???????????????? | | ?????????????????# | | ??????????????????# | | ???????????????????# | | ????????????????????#" | | ????????????????????#""" z """""" | | ???????????????????##" @ ######""" | | ???????????????????#"" ""##????#####" | | ??????????????????##""" """##?????????## | | ??????????????????#""" % """##???????????# | | ??????????????????#""" ""#????????????# | | ??????????????????#"" n ########??####" | | ??????????????????#""" % ##aaa####""" | | ??????????????????#" t """" | | ??????????????????##"" aa | | ???????????????????#"""" a | | ???????????????????## a | | ????????????????????#" " "" | | ????????????????????#"""" ""## ##"" | | ????????????????????#"" ""#### #?## | | ????????????????????#" """"##??# #??? | | ????????????????????#""" """#??## #### | | ????????????????????## ""##??#! "!# | | ?????????????????????#"" c """##???#" # | | ?????????????????????##""" ##????#" "# | | ??????????????????????##"""" ##?????#!!""!"# | | ???????????????????????### #??????######## | | ?????????????????????????##### ##?????????????? | | ?????????????????????????????## #??????????????? | | ??????????????????????????????# #??????????????? | | ??????????????????????????????# #??????????????? | +----------------------------------------------------+ Best States ------------- Heat Dissipation 25 Energy Generation 14 Energy Capacity 250 Matter Stores 300 Matter Capacity 300 Sight Range 16 Terrain Scan Density 10 Evasion (%) 55 Recoil Reduction 2 Item Schematics ----------------- None Robot Schematics ------------------ None Fabricated ------------ Nothing Alien Tech Used ----------------- None Achievements -------------- None Challenges ------------ None Game ------ Seed GravmagLayeredKinecellerator Manual? 0 Play Time 00:12:09 Cumulative 47.3 hours Start 2024.09.20 @ 17:25:15 End 2024.09.20 @ 17:35:53 Sessions 1 Manual Loads 0 Difficulty Rogue Special Mode None Game No. 87 Rogue 87 Adventurer 0 Explorer 0 Win Type - Total 0 Types 0/0/0/0/0/0/0/0/0 Lore% 18 Gallery% 36 Achievement% 32 Wizard Run 0 Options --------- Layout 1 ASCII 0 Keyboard 1 Movement Numpad Keybinds 0 Fullscreen 1 Font 24/Smallcaps Map View 50x35 Zoom Use 0% Tactical HUD 1 Map Filters NONE Filters NONE Steam 1 RUN: 97da1ecd-abb4-4be9-80fb-9897a26e0bcb